Cogmind - Beta 11 X7 @@@ ROGUE MODE // 2021.09.23 @ 18:03:13 Player: LU-1G1 Result: Destroyed by G-34 Mercenary with Small Laser Performance ------------- Evolutions (0) 0 Regions Visited (1) 200 Robots Destroyed (13) 65 Value Destroyed (352) 352 Prototype IDs (0) 0 Alien Tech Used (0) 0 Bonus (0) 0 TOTAL SCORE: 617 Bonus ------- None Cogmind --------- Core Integrity 0/250 Matter 256/300 Energy 45/100 System Corruption 0% Temperature Warning (312) Movement Treading (160) Location -10/Materials Parts ------- > --- POWER (1) -------- (None) > --- PROPULSION (2) --- Light Treads > --- UTILITY (2) ------ Small Storage Unit Visual Processing Unit > --- WEAPON (2) ------- Beam Rifle Beam Rifle > --- INVENTORY (8) ---- Light Nuclear Core Signal Interpreter Light Assault Rifle Peak State ------------ > --- POWER ------------ (None) > --- PROPULSION ------- Light Treads Wheel > --- UTILITY ---------- Small Storage Unit Visual Processing Unit > --- WEAPON ----------- Beam Rifle Beam Rifle > --- INVENTORY -------- Light Nuclear Core Signal Interpreter Light Assault Rifle [Rating: 9] Favorites ----------- Power Ion Engine Engine Ion Engine Propulsion Light Treads Treads Light Treads Wheel Wheel Utility Small Storage Unit Storage Small Storage Unit Processor Visual Processing Unit Weapon Assault Rifle Energy Gun Beam Rifle Ballistic Gun Assault Rifle Build | -11 -10 ------- Run | Scr Mat Slots Evolved . | . . Power . | . . Propulsion . | . . Utility . | . . Weapon . | . . Parts Attached 12 | 6 6 Power 2 | 1 1 Engine 2 | 1 1 Core . | . . Reactor . | . . Propulsion 4 | 2 2 Treads 3 | 2 1 Leg . | . . Wheel 1 | . 1 Hover . | . . Flight . | . . Utility 2 | 1 1 Device . | . . Storage 1 | 1 . Processor 1 | . 1 Hackware . | . . Protection . | . . Artifact . | . . Weapon 4 | 2 2 Energy Gun 2 | . 2 Energy Cannon . | . . Ballistic Gun 2 | 2 . Ballistic Cannon . | . . Launcher . | . . Special Weapon . | . . Impact Weapon . | . . Slashing Weapon . | . . Piercing Weapon . | . . Special Melee Weapon . | . . Unidentified Prototypes . | . . Parts Lost 7 | . 7 Power 2 | . 2 Propulsion 3 | . 3 Utility . | . . Weapon 2 | . 2 Highest Loss Streak 6 | . 6 Average Slot Usage (%) 95 | . 95 Engine 12 | . 12 Treads 26 | . 26 Storage 14 | . 14 Processor 13 | . 13 Ballistic Gun 26 | . 26 Naked Turns . | . . Heaviest Build 13 | 13 13 Greatest Support 40 | 40 40 Greatest Overweight (x) 4 | 4 1 Average Overweight (x) . | 1 . Largest Inventory Capacity 8 | 8 8 Average Capacity 7 | 7 8 Most Carried 6 | 1 6 Average Carried 3 | . 4 Final Capacity 8 | 8 8 Final Carried 3 | 1 3 Class Distribution -------------------- 100% | Mutant Dominant Class ---------------- Mutant | -10/Materials Resources | -11 -10 ----------- Run | Scr Mat Matter Collected 411 | 268 143 Remotely . | . . Salvage Created 447 | 69 378 Parts 30 | 2 28 Haulers Intercepted . | . . Recyclers Shooed . | . . Parts Field Recycled . | . . Retrieved Matter . | . . Parts Self-Destructed . | . . Prevented . | . . Kills | -11 -10 ------- Run | Scr Mat Combat Hostiles Destroyed 8 | . 8 Guns 8 | . 8 Classes Destroyed 5 | 1 4 Worker 1 | . 1 Builder 1 | . 1 Recycler 1 | 1 . Watcher 2 | . 2 Grunt 8 | . 8 Best Kill Streak 5 | 1 5 Combat Bots Only 5 | . 5 Max Kills in Single Turn 1 | 1 1 Gunslinging . | . . Exploded . | . . Melee . | . . Uniques/NPCs Destroyed . | . . Combat | -11 -10 -------- Run | Scr Mat Damage Taken 1127 | . 1127 Core 254 | . 254 Absorbed by Shields . | . . Core Remaining (%) 100 | 100 . Volleys Fired 49 | 2 47 Largest 2 | 2 2 Hottest 112 | 40 112 Shots Fired 92 | 4 88 Gun 92 | 4 88 Cannon . | . . Launcher . | . . Special . | . . Kinetic 82 | 4 78 Thermal 10 | . 10 Explosive . | . . Electromagnetic . | . . Robot Hit Streak 11 | 4 11 Robot Miss Streak 2 | . 2 Penetration Max . | . . Secondary Targets 1 | . 1 Max Gunslinging Chain 1 | . 1 Shots Hit Robots 64 | 4 60 Core Hits 28 | 2 26 Critical Kills 1 | . 1 Critical Parts Destroyed . | . . Critical Strikes 1 | . 1 Destroy 1 | . 1 Melee Attacks . | . . Impact . | . . Slashing . | . . Piercing . | . . Sneak Attacks . | . . Combat Hostiles . | . . Follow-up Attacks . | . . Damage Inflicted 715 | 45 670 Guns 715 | 45 670 Cannons . | . . Explosions . | . . Melee . | . . Ramming . | . . Kinetic 601 | 45 556 Thermal 114 | . 114 Explosive . | . . Electromagnetic . | . . Impact . | . . Slashing . | . . Piercing . | . . Highest Corruption . | . . Average Corruption . | . . Corruption Purged . | . . Overload Shots . | . . Overflow Damage . | . . Projectiles . | . . Explosions . | . . Melee . | . . Knockbacks . | . . Impact . | . . Kinetic . | . . Secondary . | . . Self-Inflicted Damage . | . . Shots . | . . Rammed . | . . Targets Rammed . | . . Kicked . | . . Crushed . | . . Highest Temperature 306 | . 306 Average Temperature 48 | . 48 Received Heat Transfer 678 | . 678 Siege Activations . | . . Robots Corrupted . | . . Combat Hostiles . | . . Parts Fried . | . . Impact Corruptions . | . . Robots Melted . | . . Combat Hostiles . | . . Parts Melted . | . . Heat Transferred 296 | . 296 Parts Sabotaged . | . . Parts Stolen . | . . Parts Stripped . | . . Power Chain Reactions . | . . Missiles Intercepted . | . . Alert | -11 -10 ------- Run | Scr Mat Peak Influence 225 | 5 225 Initial 3 | . 3 Average 77 | 2 88 Maximum Alert Level 1 | . 1 Low Security (%) 89 | 100 87 Level 1 10 | . 12 Level 2 . | . . Level 3 . | . . Level 4 . | . . Level 5 . | . . High Security . | . . Max Security . | . . Squads Dispatched 3 | . 3 Investigation 3 | . 3 Extermination . | . . Reinforcement . | . . Assault . | . . Garrison . | . . Intercept . | . . Construction Impeded . | . . Haulers Reinforced . | . . Active Scanning Responses . | . . Cargo Convoy Interrupts . | . . Stealth | -11 -10 --------- Run | Scr Mat Distress Signals 1 | . 1 Communications Jammed . | . . Distress Signals . | . . Times Spotted 16 | . 16 Peak Tracking Total 5 | . 5 Tactical Retreats 1 | . 1 Traps | -11 -10 ------- Run | Scr Mat Traps Triggered 1 | . 1 Indirectly . | . . Trap Hack Attempts . | . . Triggered . | . . Disarmed . | . . Reprogrammed . | . . Reused . | . . Traps Extracted . | . . Installed . | . . Triggered . | . . Machines | -11 -10 ---------- Run | Scr Mat Machines Disabled 1 | . 1 Max in Single Turn 1 | . 1 Machines Sabotaged . | . . Garrisons Compromised . | . . Overloaded Fab Kills . | . . Fab Network Shutdowns . | . . Hacking | -11 -10 --------- Run | Scr Mat Machines Accessed 4 | . 4 Terminals 3 | . 3 Fabricators . | . . Repair Stations . | . . Recycling Units 1 | . 1 Scanalyzers . | . . Garrison Access . | . . Total Hacks 11 | . 11 Successful 5 | . 5 Failed 6 | . 6 Catastrophic . | . . Database Lockouts . | . . Manual 11 | . 11 Terminals 10 | . 10 Fabricators . | . . Repair Stations . | . . Recycling Units 1 | . 1 Scanalyzers . | . . Garrison Access . | . . Terminal Hacks 2 | . 2 Part Schematic 2 | . 2 Fabricator Hacks . | . . Repair Station Hacks . | . . Recycling Unit Hacks . | . . Scanalyzer . | . . Garrison Access Hacks . | . . Unauthorized Hacks 3 | . 3 Terminals 2 | . 2 Botnet 1 | . 1 Operators 1 | . 1 Fabricators . | . . Repair Stations . | . . Recycling Units 1 | . 1 Tunnel 1 | . 1 Scanalyzers . | . . Garrison Access . | . . Data Cores Recovered . | . . Used . | . . Hacking Detections 3 | . 3 Full Trace Events 2 | . 2 Feedback Events . | . . Feedback Blocked . | . . Robot Schematics Acquired . | . . Robots Built . | . . Matter . | . . Time . | . . Total Robot Build Rating . | . . Part Schematics Acquired 2 | . 2 Parts Built . | . . Matter . | . . Time . | . . Total Part Build Rating . | . . Parts Repaired . | . . Time . | . . Parts Recycled . | . . Recycled Matter . | . . Retrieved Matter . | . . Retrieved Components . | . . Parts Scanalyzed . | . . Part Schematics Acquired . | . . Parts Damaged . | . . Bothacking | -11 -10 ------------ Run | Scr Mat Used RIF Installer . | . . Robots Hacked . | . . Non-combat . | . . Combat . | . . Robot Hacks Applied . | . . Relay Couplers Released . | . . Robots Rewired . | . . Allies Hacked . | . . Hacks Repelled . | . . Allies | -11 -10 -------- Run | Scr Mat Total Allies . | . . Largest Group . | . . Highest-Rated Group . | . . Highest-Rated Ally . | . . Total Orders . | . . Ally Attacks . | . . Total Damage . | . . Kills . | . . Allies Corrupted . | . . Allies Melted . | . . Intel | -11 -10 ------- Run | Scr Mat Robot Analysis Total . | . . Derelict Logs Recovered . | . . Drone Launches . | . . Drone Recoveries . | . . Exploration | -11 -10 ------------- Run | Scr Mat Turns Passed 667 | 87 580 Spaces Moved 313 | 43 270 Core 18 | 18 . Treads 278 | 25 253 Legs . | . . Wheels 17 | . 17 Hover . | . . Flight . | . . Fastest Speed 50 | 50 80 Average Speed 157 | 169 155 Slowest Speed 250 | 250 160 Overloaded Moves . | . . Propulsion Burnouts . | . . Robots Hopped . | . . Cave-ins Triggered . | . . Exploration Rate (%) 26 | 4 48 Regions Visited 1 Branch Regions . Pre-discovered Areas 1 | . 1 Known Exits Taken . | . . Unknown Exits Taken 1 | 1 . Scrap Searched . | . . Spaces Dug . | . . Terrain Destroyed . | . . Melee . | . . Projectile . | . . AOE . | . . Terrain Rammed . | . . Walls Destroyed . | . . Machines Disabled . | . . Actions | -11 -10 --------- Run | Scr Mat Total 399 | 51 348 Wait 20 | . 20 Move 312 | 42 270 Hop . | . . Pick Up 6 | 1 5 Fast Attach 9 | 6 3 Attach 3 | . 3 Detach . | . . Swap . | . . Drop . | . . Fire 49 | 2 47 Melee . | . . Ram . | . . Kick . | . . Crush . | . . Escape Stasis . | . . Rewire . | . . Trap . | . . Miscellaneous . | . . Route ------- -11/Scrapyard -10/Materials (discovered 2 exits: [*Mat x2]) History --------- Turn | Location | Event 10 | -11/Scrapyard | Discovered new exit (range 15) 88 | -11/Scrapyard | Entered Materials 276 | -10/Materials | Discovered new exit (range 10) 313 | -10/Materials | Build established: Mutant 563 | -10/Materials | Discovered new exit (range 3) 629 | -10/Materials | Core integrity fell below 50% 664 | -10/Materials | Core integrity fell below 20% 668 | -10/Materials | Destroyed by G-34 Mercenary with Small Laser Last Messages --------------- 00603_ ALERT: Alarm triggered, dispatching investigation squad. 00603_ U-05 Engineer lays Concrete. 00609_ U-05 Engineer suffers critical hit (Destroy). 00609_ U-05 Engineer destroyed. 00609_ Switching to secondary target: G-47 Trooper. 00609_ R-06 Scavenger suffers critical hit (Burn). 00610_ U-05 Engineer lays Concrete. 00617_ Lgt. Assault Rifle destroyed. 00621_ Critical hit (Burn: +37). 00622_ Lgt. Treads destroyed. 00630_ Assault Rifle destroyed. 00630_ Lgt. Ion Engine destroyed. 00631_ G-34 Mercenary destroyed. 00641_ Acquired Beam Rifle. 00658_ Wheel destroyed. 00665_ G-34 Mercenary heat damages Aluminum Leg, Aluminum Leg, Heat Sink. 00665_ Destroyed Aluminum Leg. 00666_ G-34 Mercenary overheating. 00667_ G-34 Mercenary heat damages Sml. Laser. 00667_ G-34 Mercenary overheating. Map ----- +----------------------------------------------------+ | ???????????????????????????????????? | | ???????????????????????????????????? | | ???????????????????????????????????? | | ???????????????????????????????????? | | ???????????????????????????????????? | | ?????????????????????+?????????????? | | ????????????????????? ?????????????? | | ????????????????????? ?????????????? | | ????????????????????# ??????? ????? | | ????????????????????# ?????? #???? | | ????????????????????# ?????? #???? | | ????????????????????# ????? #???? | | ????????????????????# ????? #????? | | ????????????????????# #??? #?????? | | ????????????????????# #### #?????? | | ??????????????####### ???????? | | ?????????????##!!!!## ????????? | | ?????????????#! !# ?????????? | | ?????????????#! !# #??????????? | | ???????????????# # #####??????? | | ???????????????# [[#??????? | | ???????????????# #??????? | | ???????????????# gg#??????? | | ???????????????# ######gg=#??????? | | ???????????????# #????# !!#??????? | | ???????????????# #????#@!!#??????? | | ???????????????# #????#####??????? | | ???????????????# #???????????????? | | ???????????????# * #???????????????? | | ???????????????#*|!#???????????????? | | ???????????????#%!%###?????????????? | | ???????????????#=%= ########??????? | | ???????????##### = *% #??????? | | ?????? + % [